[Event "Serbian-ch Semifinal 2024"]
[Site "Paracin"]
[Date "2024.02.09"]
[Round "6.7"]
[White "Pap, Misa"]
[Black "Cuzovic, Ognjen"]
[Result "1-0"]
[ECO "B11"]
[WhiteElo "2422"]
[BlackElo "2068"]
[Annotator "TA"]
[PlyCount "65"]
[EventDate "2024.02.04"]
[EventType "swiss"]
[EventCountry "SRB"]
[SourceTitle "playchess.com"]
[Source "ChessBase"]
[SourceQuality "1"]
[TimeControl "40/5400+30:1800+30"]

{[%evp 9,65,0,0,-37,-43,-40,-43,-34,-38,-35,-33,-36,-36,-42,-22,-22,-21,-31,-16,-34,-35,-40,-37,-49,-35,-40,218,11,50,50,155,152,156,147,156,159,625,641,554,89,160,150,140,156,122,58,272,99,1080,961,29972,29967,29961,29962,5189,2043,1725,1650]} 1. e4 {[%emt 0:04:46]} c6 {[%emt 0:00:46]} 2. Nc3 {[%emt 0:00:52]} d5 {[%emt 0:00:21]} 3. Nf3 {[%emt 0:00:05]} Nf6 {[%emt 0:00:25]} 4. e5 {[%emt 0:03:03]} Ne4 {[%emt 0:00:09]} 5. h3 {[%emt 0:05:41]} e6 {[%emt 0:03:12]} 6. d3 {[%emt 0:01:27]} Nxc3 {[%emt 0:00:11]} 7. bxc3 {[%emt 0:00:04]} c5 {[%emt 0:03:06]} 8. g3 {[%emt 0:03:01] Black is slightly better.} Nc6 {[%emt 0:03:10]} 9. Bg2 {[%emt 0:00:10]} Be7 {[%emt 0:02:48]} 10. O-O {[%emt 0:00:11]} O-O {[%emt 0:00:54]} 11. Re1 {[%emt 0:00:03]} b6 {[%emt 0:05:25]} 12. h4 {[%emt 0:01:00]} Bb7 {[%emt 0:03:06]} 13. Bg5 {[%emt 0:01:50]} h6 {[%emt 0:01:07]} 14. Bxe7 {[%emt 0:03:37]} Qxe7 {[%emt 0:04:27]} 15. Qd2 {[%emt 0:06:49]} Rfd8 {[%emt 0:08:12]} 16. Nh2 {[%emt 0:04:08]} Qc7 {[%emt 0:11:29]} 17. Ng4 {[%emt 0:06:30]} h5 $2 {[%emt 0:10:09][%mdl 8192]} (17... Na5 $15 {stays ahead.}) 18. Nh2 $2 {[%emt 0:17:31]} (18. Nf6+ $1 $18 gxf6 19. exf6) 18... d4 {[%emt 0:06:20]} (18... Nxe5 $2 19. Qf4 $18) 19. c4 {[%emt 0:02:03]} Ne7 {[%emt 0:01:57]} (19... Rab8 $14) 20. Qg5 $16 {[%emt 0:07:42]} Bxg2 {[%emt 0:01:28]} 21. Kxg2 {[%emt 0:00:04]} g6 {[%emt 0:01:12]} 22. g4 {[%emt 0:00:41]} hxg4 {[%emt 0:00:50]} (22... Qc6+ $16 23. Re4 Kf8 24. gxh5 Ke8) 23. Nxg4 $18 {[%emt 0:00:09]} Nf5 {[%emt 0:02:43]} 24. Nh6+ $2 {[%emt 0:10:05]} (24. h5 $18 {and White stays clearly on top.}) 24... Kh7 {[%emt 0:09:45]} ({Black should try} 24... Kf8) 25. Nxf5 $16 {[%emt 0:00:37]} exf5 {[%emt 0:02:02]} 26. h5 $1 {[%emt 0:07:11][%cal Bh4h5,Bh5h6][%mdl 32] White is more active.} Qc6+ {[%emt 0:01:40]} 27. f3 {[%emt 0:00:24]} (27. Kg3 $16 {And now Rh1 would win.} Kg7 28. hxg6 fxg6 29. Rh1 f4+ 30. Qxf4) 27... Kg7 $2 {[%emt 0:01:40] [#]} (27... Re8 $1 $14) 28. e6 $2 {[%emt 0:01:43]} (28. h6+ $1 $18 {[%mdl 512] is the precise move to win.} Kh7 29. e6) 28... Re8 $2 {[%emt 0:03:31][%mdl 8192]} (28... Rh8 $16) 29. h6+ $18 {[%emt 0:02:11]} Kf8 {[%emt 0:03:24]} 30. Qf6 {[%emt 0:05:02][%csl Ge6][%cal Rf6f7]} Rxe6 {[%emt 0:00:53]} 31. Rxe6 {[%emt 0:00:49]} ({Avoid the trap} 31. h7 $2 Re2+ (31... Rxf6 32. h8=Q#) 32. Rxe2 Qxf6 $19) 31... Qxe6 {[%emt 0:00:08]} 32. Qg7+ {[%emt 0:02:05]} (32. Qh8+ $142 Ke7 33. Qxa8 Qe2+ 34. Kh1) 32... Ke7 {[%emt 0:00:25] [#]} 33. Kf1 $1 {[%emt 0:00:07] Weighted Error Value: White=0.60/Black=0.84.  Loses game:     	---       	Black=4      Missed win:     	White=2     	---        Mistake:       	White=1     	Black=1      Inaccurate:     	---       	Black=2      OK:         	White=5     	Black=7      Best:        	White=2     	---        Strong:       	White=1     	---} ({Weaker is} 33. h7 Qe2+ 34. Kg3 f4+ 35. Kxf4 Qh2+ 36. Kg4 Qg2+ 37. Kf4 Qh2+ 38. Kg4 Qg2+ 39. Kf4 Qh2+ $11) 1-0

[Event "Serbian-ch Semifinal 2024"]
[Site "Paracin"]
[Date "2024.02.09"]
[Round "6.8"]
[White "Gusev, Mikhail"]
[Black "Milosevic, Milos"]
[Result "1/2-1/2"]
[ECO "C17"]
[WhiteElo "2117"]
[BlackElo "2388"]
[Annotator "TA"]
[PlyCount "70"]
[EventDate "2024.02.04"]
[EventType "swiss"]
[EventCountry "SRB"]
[SourceTitle "playchess.com"]
[Source "ChessBase"]
[SourceQuality "1"]
[TimeControl "40/5400+30:1800+30"]

{[%evp 14,69,-24,-26,0,-8,9,-8,-10,-33,0,0,0,0,0,-39,0,-32,-29,-22,-33,-31,0,0,0,0,0,0,0,-6,0,-71,-30,-57,0,-35,-22,-127,-115,-279,-261,-91,-89,-347,-142,-93,0,0,12,20,15,19,7,0,0,0,0,0]} 1. e4 {[%emt 0:02:59]} e6 {[%emt 0:03:12]} 2. d4 {[%emt 0:00:37]} d5 {[%emt 0:00:55]} 3. Nc3 {[%emt 0:00:21]} Bb4 {[%emt 0:00:21]} 4. e5 {[%emt 0:00:40]} c5 {[%emt 0:00:22]} 5. Bd2 {[%emt 0:00:07]} Ne7 {[%emt 0:00:12]} 6. Nb5 {[%emt 0:04:36]} Bxd2+ {[%emt 0:00:07]} 7. Qxd2 {[%emt 0:00:06]} O-O {[%emt 0:00:09]} 8. c3 {[%emt 0:05:17]} Bd7 {[%emt 0:02:13]} 9. Nf3 {[%emt 0:01:53]} cxd4 {[%emt 0:20:56]} 10. cxd4 {[%emt 0:06:46]} Qb6 {[%emt 0:00:27]} 11. a4 {[%emt 0:03:54]} Nbc6 {[%emt 0:07:03]} 12. a5 {[%emt 0:04:10]} Qd8 {[%emt 0:00:05]} 13. Bd3 {[%emt 0:03:00]} f6 {[%emt 0:01:02]} 14. a6 {[%emt 0:12:04]} bxa6 {[%emt 0:02:56]} 15. Rxa6 {[%emt 0:01:37]} fxe5 {[%emt 0:00:06]} 16. Nxe5 {[%emt 0:03:00]} Nxe5 {[%emt 0:00:24]} 17. dxe5 {[%emt 0:00:06]} Qb8 {[%emt 0:02:03]} 18. Nd6 {[%emt 0:05:08]} Nc6 {[%emt 0:01:31]} 19. f4 {[%emt 0:03:40]} Nb4 {[%emt 0:00:12]} 20. Ra3 {[%emt 0:00:18]} Nxd3+ {[%emt 0:03:09]} 21. Rxd3 {[%emt 0:00:13]} Qb6 {[%emt 0:00:19]} 22. Ke2 {[%emt 0:03:49]} (22. Rf1 $11 {remains equal.}) 22... a5 {[%emt 0:01:06]} 23. Rc1 {[%emt 0:03:12][%cal Od3d5]} a4 {[%emt 0:02:24]} ({Black should play} 23... Bb5 $15 24. Nxb5 Qxb5) 24. Rdc3 {[%emt 0:02:49]} Rab8 {[%emt 0:02:01]} 25. Rc7 {[%emt 0:04:23] Active counter play!} (25. g3 $11 {keeps the balance.}) 25... Bb5+ $1 $17 {[%emt 0:00:35]} 26. Kf3 $2 {[%emt 0:02:36] [#]} (26. Nxb5 $17 Qxb5+ 27. Kf3) 26... Bc4 $1 $19 {[%emt 0:00:48][%mdl 512]} 27. Re7 {[%emt 0:01:06]} Qd8 {[%emt 0:00:53]} 28. Ra7 {[%emt 0:00:53][%mdl 8192] [#]} (28. Rxe6 $2 Qd7 $19) (28. Rb7 $17) 28... Rb3+ {[%emt 0:06:52]} (28... Qh4 $1 $19 {is more deadly.} 29. g3 Qh3 30. Rxa4 g5 31. Raxc4 (31. Nxc4 $2 gxf4 32. Ke2 f3+ 33. Ke3 dxc4 $19) 31... dxc4) 29. Rc3 $17 {[%emt 0:01:10][%cal Oc3b3] [#]} Qb6 {[%emt 0:09:42]} (29... Qh4 $1 $17 {[%cal Ob3b2] ...Rxb2! is the strong threat.} 30. g3 Qh3 31. Rxb3 Qf1+ (31... Bxb3 $2 32. Ke3 $19) (31... axb3 32. Qg2 $17) 32. Ke3 Qg1+ (32... Bxb3 $2 33. Rb7 $19) (32... axb3 33. Rb7 $17) 33. Qf2 d4+ 34. Kf3 Qd1+ 35. Kg2 Bxb3) 30. Rb7 $11 {[%emt 0:05:43] Dancing on a razor blade. The position is equal.} Qg1 {[%emt 0:01:43]} 31. Rbxb3 {[%emt 0:01:27]} Bxb3 {[%emt 0:05:27]} 32. Kg3 {[%emt 0:01:27]} d4 $132 {[%emt 0:02:35][%mdl 2048] Black has counterplay} 33. Rc1 {[%emt 0:02:15]} Qe3+ {[%emt 0:00:05]} 34. Qxe3 {[%emt 0:00:04]} dxe3 {[%emt 0:00:02]} 35. Rc8 {[%emt 0:04:52]} Bd5 $1 {[%emt 0:00:19] Weighted Error Value: White=0.37/Black=0.29 (precise) .  Loses game:     	White=2     	---        Missed win:     	---       	Black=1      Mistake:       	White=2     	Black=2      Inaccurate:     	White=4     	Black=4      OK:         	White=8     	Black=8      Best:        	White=3     	Black=2      Strong:       	---       	Black=2      Brilliant:      	---       	Black=1} 1/2-1/2

[Event "Serbian-ch Semifinal 2024"]
[Site "Paracin"]
[Date "2024.02.09"]
[Round "6.9"]
[White "Perunovic, Miodrag"]
[Black "Ivanovic, Marko"]
[Result "0-1"]
[ECO "C41"]
[WhiteElo "2373"]
[BlackElo "2245"]
[Annotator "TA"]
[PlyCount "96"]
[EventDate "2024.02.04"]
[EventType "swiss"]
[EventCountry "SRB"]
[SourceTitle "playchess.com"]
[Source "ChessBase"]
[SourceQuality "1"]
[TimeControl "40/5400+30:1800+30"]

{[%evp 17,96,40,52,46,36,37,38,18,19,15,35,17,30,18,11,0,-14,0,0,-51,-67,-203,-52,-191,-92,-92,-71,-133,-62,-156,-183,-243,-225,-269,-256,-250,-251,-339,-118,-124,-122,-537,-543,-473,-481,-653,-393,-499,-417,-410,-220,-211,-54,-331,-357,-357,-331,-550,-464,-411,-154,-22,-16,-3,-26,-159,-158,-612,-550,-611,-638,-625,-605,-812,-805,-975,-346,-29989,-29974,-29991,-29992]} 1. e4 {[%emt 0:00:04]} d6 {[%emt 0:06:32]} 2. d4 {[%emt 0:00:16]} Nf6 {[%emt 0:00:06]} 3. Nc3 {[%emt 0:00:08]} e5 {[%emt 0:00:19]} 4. Nf3 {[%emt 0:00:18]} Nbd7 {[%emt 0:00:06]} 5. Bc4 {[%emt 0:00:16]} Be7 {[%emt 0:00:06]} 6. a4 {[%emt 0:00:07]} O-O {[%emt 0:00:05]} 7. O-O {[%emt 0:00:05]} c6 {[%emt 0:00:02]} 8. Re1 {[%emt 0:00:07]} b6 {[%emt 0:00:09] 8...h6 might become the main line.} 9. Bg5 {[%emt 0:00:34]} h6 {[%emt 0:00:07] C41: Philidor Defence.} 10. Bxf6 {[%emt 0:00:28]} Bxf6 {[%emt 0:00:06]} 11. d5 {[%emt 0:00:06]} c5 {[%emt 0:00:03]} 12. Bf1 {[%emt 0:00:55]} a6 {[%emt 0:21:05]} 13. Nd2 {[%emt 0:01:37]} Rb8 $146 {[%emt 0:01:37]} ({Predecessor:} 13... g6 14. Nc4 Qc7 15. Rb1 Rb8 {½-½ Nanu,C (2456)-Badea,B (2495) Bucharest Spring Festival 2003 (1)}) 14. Nc4 {[%emt 0:04:15]} Be7 {[%emt 0:00:16]} 15. Na3 {[%emt 0:04:12]} g6 {[%emt 0:02:51]} 16. Bc4 {[%emt 0:01:15]} f5 {[%emt 0:02:36]} 17. Qd3 {[%emt 0:02:30]} Ra8 {[%emt 0:01:27]} 18. Rab1 {[%emt 0:00:20]} (18. exf5 $11 gxf5 19. f4 exf4 20. Qf1) 18... f4 $15 {[%emt 0:00:17]} 19. b4 {[%emt 0:02:23]} (19. Qd1 $15) 19... Qc7 $2 {[%emt 0:11:49]} ({Black should try} 19... cxb4 $1 $19 20. Rxb4 Nc5) 20. Rb3 {[%emt 0:14:18] [#]} (20. b5 $15) 20... g5 {[%emt 0:04:20]} (20... cxb4 $1 $19 {is more deadly.} 21. Rxb4 f3) 21. Reb1 {[%emt 0:00:05]} g4 {[%emt 0:06:58]} 22. Qd1 {[%emt 0:03:09]} ({Better is} 22. Qf1) 22... h5 {[%emt 0:01:25]} (22... cxb4 $17 23. Rxb4 (23. Qxg4+ Kh7 $15) 23... h5) 23. Kh1 {[%emt 0:08:06]} (23. bxc5 $15 Qxc5 24. Bd3) 23... f3 {[%emt 0:08:57]} 24. gxf3 {[%emt 0:12:40]} (24. g3 {was called for.}) 24... cxb4 $19 {[%emt 0:00:50]} (24... gxf3 25. b5 a5 26. Ne2 $11 (26. Qg1+ Kh7 $15)) 25. Rxb4 {[%emt 0:01:08]} Rxf3 {[%emt 0:00:12]} (25... gxf3 26. Qd2 $17) 26. Qd2 {[%emt 0:12:26]} Bh4 {[%emt 0:07:51]} 27. Bd3 {[%emt 0:00:01]} Nf8 $2 {[%emt 0:07:42]} (27... Rxf2 $19 28. Qh6 Nc5 (28... Qxc3 29. Qg6+ Kf8 30. Qh6+ Ke7 31. Qxh5 $17) 29. Qg6+ Qg7 30. Qxg7+ Kxg7) 28. Nd1 {[%emt 0:03:23]} Qe7 {[%emt 0:06:06]} 29. Nc4 $2 {[%emt 0:01:34][%mdl 8192]} (29. R4b3 $17 {is tougher.}) 29... Bg5 $19 {[%emt 0:00:07]} 30. Nde3 {[%emt 0:04:58]} Bf4 {[%emt 0:00:25]} 31. Rg1 {[%emt 0:01:56]} Qh4 {[%emt 0:05:06]} 32. Rg2 {[%emt 0:00:35]} Rh3 {[%emt 0:00:21]} 33. f3 {[%emt 0:02:50]} Rxf3 {[%emt 0:00:06]} (33... Ng6 $142 34. Qf2 (34. Rxb6 $2 gxf3 35. Nf1 Bxd2 $19) 34... b5 (34... Rxf3 $2 35. Qxh4 Nxh4 36. Nf1 $19) 35. axb5 Qxf2 (35... Rxf3 $2 36. Qxh4 Nxh4 37. Nf1 $19) (35... axb5 $2 36. Rxb5 Qxf2 37. Rxf2 $19) 36. Rxf2 axb5 (36... gxf3 $2 37. b6 $18) 37. Rxb5 g3 (37... Rxf3 38. Rxf3 gxf3 39. Kg1 $14) (37... gxf3 38. Rb1 $11)) 34. Qe2 $19 {[%emt 0:00:02]} Qh3 $2 {[%emt 0:04:16]} (34... Bg5 $19 {...Ng6 would now be deadly.} 35. Rxb6 Ng6 36. Rxd6 Nf4) 35. Nd1 $2 {[%emt 0:06:12][%mdl 8192] [#]} (35. Nf5 $1 $15) 35... Ng6 $1 $19 {[%emt 0:01:32]} 36. Nf2 {[%emt 0:00:30]} Qh4 {[%emt 0:00:37]} 37. Rxb6 $2 {[%emt 0:01:14]} (37. Nxd6 Rg3 38. Rxg3 Bxg3 39. Nh3 Qxh3 40. Qg2 Qxg2+ 41. Kxg2) 37... Bg5 $19 {[%emt 0:00:58]} ({Not} 37... Bg3 38. Qxf3 gxf3 39. Rxg3 $16) 38. Nd2 {[%emt 0:11:52]} Bxd2 $2 {[%emt 0:00:18]} (38... Re3 $19 {has better winning chances.} 39. Qf1 Nf4 40. Rxd6 g3 (40... Nxg2 $2 41. Qxg2 Bf4 42. Nf1 $19)) 39. Rxd6 $17 {[%emt 0:00:57]} Kh7 {[%emt 0:01:31]} (39... Qg5 40. Qxf3 (40. Bxa6 $2 Nh4 $19) 40... Nf4 41. Rg3 $16) 40. Rxg6 {[%emt 0:00:15]} Bh6 {[%emt 0:00:39]} 41. Rb6 {[%emt 0:03:02]} (41. Rc6 $11) 41... Be3 $17 {[%emt 0:07:42]} 42. Rc6 $2 {[%emt 0:00:24]} (42. Rg6 $17) 42... Bxf2 $19 {[%emt 0:03:54]} (42... Rxf2 $2 {perishes.} 43. Qxe3 Rf4 44. Qb6 $18) 43. Rc7+ {[%emt 0:00:39]} Kh8 {[%emt 0:00:09]} 44. Qd2 {[%emt 0:00:05]} Qf6 {[%emt 0:10:24]} 45. Qc3 {[%emt 0:00:27]} Bd7 {[%emt 0:01:28]} 46. Rxd7 {[%emt 0:02:16]} Bd4 $2 {[%emt 0:00:49]} (46... Qf4 {( -> ...Qc1+)} 47. Qa1 Rf8) 47. Qc4 $2 {[%emt 0:08:06]} (47. Qe1 $19 Rf8 48. Rb7 Rf1+ 49. Bxf1 Qxf1+ 50. Rg1 Bxg1 51. Qxf1 Rxf1 52. Kg2) 47... Rb8 {[%emt 0:02:51]} 48. Rg1 {[%emt 0:01:47]} Rf2 {[%emt 0:01:15]} 0-1

[Event "Serbian-ch Semifinal 2024"]
[Site "Paracin"]
[Date "2024.02.09"]
[Round "6.10"]
[White "Krstic, Andrija Marko"]
[Black "Djordjevic, Vuk"]
[Result "0-1"]
[ECO "E15"]
[WhiteElo "2113"]
[BlackElo "2367"]
[Annotator "TA"]
[PlyCount "94"]
[EventDate "2024.02.04"]
[EventType "swiss"]
[EventCountry "SRB"]
[SourceTitle "playchess.com"]
[Source "ChessBase"]
[SourceQuality "1"]
[TimeControl "40/5400+30:1800+30"]

{[%evp 19,94,16,10,10,12,11,28,17,25,30,78,13,89,39,105,11,19,14,10,0,0,-65,-64,-93,-78,-96,-81,-306,-267,-270,-83,-81,-58,-61,-48,-70,-67,-68,-64,-106,-117,-120,-93,-120,-91,-113,-79,-136,0,-94,0,-298,-283,-283,-299,-280,-286,-338,-221,-556,-545,-564,-563,-615,-548,-545,-480,-539,-479,-879,-891,-961,-908,-793,-677,-677,-632]} 1. d4 {[%emt 0:00:04]} Nf6 {[%emt 0:05:48]} 2. c4 {[%emt 0:00:08]} e6 {[%emt 0:00:14]} 3. Nf3 {[%emt 0:00:06]} b6 {[%emt 0:00:36]} 4. g3 {[%emt 0:00:20]} Ba6 {[%emt 0:00:31]} 5. b3 {[%emt 0:00:40]} Bb4+ {[%emt 0:00:31]} 6. Bd2 {[%emt 0:00:10]} Be7 {[%emt 0:00:18]} 7. Nc3 {[%emt 0:00:15]} d5 {[%emt 0:03:21]} 8. cxd5 {[%emt 0:00:37]} exd5 {[%emt 0:00:15]} 9. Bg2 {[%emt 0:00:45]} O-O {[%emt 0:04:49]} 10. O-O {[%emt 0:00:23]} Re8 {[%emt 0:06:34]} 11. a3 {[%emt 0:05:27]} Nbd7 {[%emt 0:05:33]} 12. b4 {[%emt 0:04:50]} Bd6 {[%emt 0:09:01]} 13. Nh4 {[%emt 0:05:44][%cal Bf3h4,Bh4f5,Bf5h6][%mdl 32] White has an edge.} c6 {[%emt 0:09:25]} 14. Nf5 {[%emt 0:02:51]} Nf8 {[%emt 0:06:49]} (14... Bf8 $11) 15. Re1 {[%emt 0:07:38]} (15. b5 $16 Bxb5 16. Nxb5 cxb5 17. Bg5) 15... Bc7 {[%emt 0:10:36]} (15... Ne6 $11) 16. Qc2 {[%emt 0:05:55]} (16. e4 $16 {Threatens to win with e5.} Bc8 17. Bg5 Bxf5 18. exf5 Rxe1+ 19. Qxe1) 16... Ne6 {[%emt 0:05:20]} ({Black should try} 16... Qd7 $14) 17. Rad1 {[%emt 0:04:04]} (17. e4 $16) 17... g6 $11 {[%emt 0:03:08]} 18. Nh6+ {[%emt 0:01:31]} Kg7 {[%emt 0:00:18]} 19. Bc1 {[%emt 0:00:16]} Bc4 $1 {[%emt 0:05:57]} 20. Na4 {[%emt 0:10:59]} (20. e4 $11) 20... a5 $15 {[%emt 0:09:55]} 21. Nb2 {[%emt 0:00:31]} b5 {[%emt 0:00:10]} 22. e4 {[%emt 0:00:13]} axb4 {[%emt 0:00:44]} 23. e5 $2 {[%emt 0:00:31]} (23. axb4 $17 {might work better.} Bb6 24. e5 Nxd4 25. Rxd4 Bxd4 26. Nxc4 dxc4 (26... bxc4 27. exf6+ Qxf6 28. Rf1 $15) 27. exf6+ Qxf6 28. Rf1) 23... Ng8 $19 {[%emt 0:05:36]} 24. Nxg8 {[%emt 0:01:26]} Kxg8 {[%emt 0:00:06]} (24... b3 $19 25. Qb1 Kxg8 (25... Rxg8 $2 26. Nd3 $17)) 25. axb4 $17 {[%emt 0:00:27]} f5 {[%emt 0:03:12]} 26. Be3 {[%emt 0:02:41]} Qd7 {[%emt 0:01:54]} 27. Nd3 {[%emt 0:12:18]} Bb6 {[%emt 0:01:08]} 28. Nf4 {[%emt 0:00:33]} Ra2 {[%emt 0:00:25]} 29. Qb1 {[%emt 0:02:37]} Nxf4 {[%emt 0:01:08]} 30. Bxf4 {[%emt 0:00:34]} Qa7 {[%emt 0:00:05]} 31. Be3 {[%emt 0:02:18]} Qa3 $36 {[%emt 0:00:38][%mdl 2048] Black is in control.} 32. Bh3 {[%emt 0:03:19]} Rb2 {[%emt 0:00:55] White is weak on the light squares} 33. Qa1 {[%emt 0:02:00]} (33. Qc1 $142) 33... Ra2 {[%emt 0:01:20] Black is much more active.} 34. Qb1 {[%emt 0:00:06]} Qb2 {[%emt 0:00:34]} (34... Ra8 $17) 35. g4 $2 {[%emt 0:01:58][%mdl 8192] [#]} (35. Qxb2 $1 $11 Rxb2 36. g4) 35... Qxb1 $1 $19 {[%emt 0:00:33]} 36. Rxb1 {[%emt 0:00:04] [#]} f4 {[%emt 0:00:26][%mdl 512]} 37. Bxf4 {[%emt 0:01:03]} Bxd4 {[%emt 0:00:07]} 38. Bg3 {[%emt 0:00:27]} Bc3 {[%emt 0:00:58]} 39. g5 $2 {[%emt 0:04:14]} (39. Red1 {is a better chance.}) 39... Bxe1 {[%emt 0:00:23] Black is clearly winning.} 40. Rxe1 {[%emt 0:00:04]} Rea8 {[%emt 0:00:37]} 41. Bd7 {[%emt 0:31:39]} Ra1 {[%emt 0:03:34]} 42. Rxa1 {[%emt 0:00:00]} Rxa1+ {[%emt 0:00:06] KRB-KB} 43. Kg2 {[%emt 0:00:00]} d4 {[%emt 0:16:12] Strongly threatening ...Bd5+.} 44. Bf4 {[%emt 0:00:00]} (44. e6 $142 Re1 45. Bf4) 44... Bd5+ {[%emt 0:01:32]} 45. f3 {[%emt 0:00:00]} Kf7 {[%emt 0:01:19] ...Ra2+ is the strong threat.} 46. Kf2 {[%emt 0:00:00]} Ra2+ {[%emt 0:00:17]} 47. Ke1 {[%emt 0:00:00]} Bxf3 {[%emt 0:00:45] Weighted Error Value: White=0.67/Black=0.31.  Loses game:     	White=2     	---        Missed win:     	---       	Black=1      Mistake:       	White=7     	Black=4      Inaccurate:     	White=2     	Black=2      OK:         	White=11    	Black=11     Best:        	White=2     	Black=2      Strong:       	---       	Black=2      Brilliant:      	---       	Black=1} 0-1

[Event "Serbian-ch Semifinal 2024"]
[Site "Paracin"]
[Date "2024.02.09"]
[Round "7.1"]
[White "Tadic, Stefan"]
[Black "Ivanisevic, Ivan"]
[Result "0-1"]
[ECO "C57"]
[WhiteElo "2390"]
[BlackElo "2517"]
[Annotator "TA"]
[PlyCount "72"]
[EventDate "2024.02.04"]
[EventType "swiss"]
[EventCountry "SRB"]
[SourceTitle "playchess.com"]
[Source "ChessBase"]
[SourceQuality "1"]
[TimeControl "40/5400+30:1800+30"]

{[%evp 11,72,63,61,68,63,43,55,45,45,30,2,0,1,0,0,0,10,76,86,29,35,0,75,85,86,0,0,0,0,0,0,0,0,0,0,0,0,0,0,0,0,0,0,0,0,0,0,-39,-41,-45,-41,-475,-463,-463,-461,-1668,-492,-29987,-29988,-29988,-29989,-29994,-29995]} 1. e4 {[%emt 0:00:09]} e5 {[%emt 0:02:09]} 2. Nf3 {[%emt 0:00:18]} Nc6 {[%emt 0:00:06]} 3. Bc4 {[%emt 0:00:05]} Nf6 {[%emt 0:00:20][%cal Bg8f6,Bf6d5,Bd5b4][%mdl 32]} 4. Ng5 {[%emt 0:00:05]} d5 {[%emt 0:00:13]} 5. exd5 {[%emt 0:00:04]} b5 {[%emt 0:00:50]} 6. Bf1 {[%emt 0:01:23]} Nxd5 {[%emt 0:00:07]} 7. Bxb5 {[%emt 0:02:56]} Bb7 {[%emt 0:00:06]} 8. Qf3 {[%emt 0:09:36]} Qd7 {[%emt 0:07:17]} 9. Nc3 {[%emt 0:08:46] White is slightly better.} Ndb4 {[%emt 0:11:38][%cal Oh7h6]} 10. Ba4 {[%emt 0:01:06]} h6 $132 {[%emt 0:01:13][%mdl 2048] Black is not holding back} 11. Nge4 {[%emt 0:18:17] White wants to play a3.} O-O-O $1 {[%emt 0:01:01]} 12. a3 {[%emt 0:00:01]} Nxc2+ {[%emt 0:04:32]} 13. Bxc2 {[%emt 0:00:32]} Nd4 {[%emt 0:00:05][%csl LRc2,LRf3]} 14. Qd1 {[%emt 0:04:56]} f5 {[%emt 0:01:31] [#] Repels f3} 15. d3 $1 {[%emt 0:03:10]} fxe4 $11 {[%emt 0:20:06]} 16. dxe4 {[%emt 0:00:12]} Ba6 {[%emt 0:02:59]} (16... Qe6 $11 {remains equal.} 17. O-O Ba6) 17. Bd3 $16 {[%emt 0:04:46]} Qe6 {[%emt 0:14:35][%cal Od4c2] ...Nc2+! would now be deadly.} 18. Nd5 {[%emt 0:15:38]} (18. Bxa6+ $1 $16 Qxa6 19. Be3) 18... Bxd3 $1 $11 {[%emt 0:01:18]} 19. Qxd3 {[%emt 0:00:03] Strongly threatening Be3.} c6 {[%emt 0:00:10]} 20. Qa6+ {[%emt 0:00:04]} Kb8 {[%emt 0:00:08]} 21. Ne3 {[%emt 0:00:08] Prevents Nc2+.} Nb3 {[%emt 0:03:53] Against b4} 22. Rb1 {[%emt 0:00:25]} Nc5 {[%emt 0:00:16]} 23. Qc4 {[%emt 0:00:37]} Nd3+ {[%emt 0:00:06]} 24. Kf1 {[%emt 0:01:11]} Qf6 {[%emt 0:01:15]} 25. Ng4 {[%emt 0:08:47]} Qg6 {[%emt 0:00:19]} 26. f3 {[%emt 0:00:32] Hoping for Be3.} Bc5 {[%emt 0:00:42]} 27. Be3 {[%emt 0:02:50]} Bxe3 {[%emt 0:01:10]} 28. Nxe3 {[%emt 0:00:01] Threatens to win with Rd1.} Qg5 {[%emt 0:01:02]} 29. Ke2 {[%emt 0:00:08][%cal Oh1d1] And now Rhd1! would win.} Nf4+ {[%emt 0:02:50]} 30. Kf1 {[%emt 0:00:01][%cal Oh2h4]} Rd3 {[%emt 0:00:47] Active counter play!} 31. Qxc6 $2 {[%emt 0:00:27][%mdl 8192] [#] This costs White the game.} Rc8 $1 $19 {[%emt 0:01:14]} ({Inferior is} 31... Rxe3 32. Qb5+ Ka8 33. Qc6+ Kb8 34. Qb5+ Ka8 35. Qc6+ Kb8 $11) 32. Qb5+ {[%emt 0:01:35]} Ka8 {[%emt 0:00:06]} 33. Qa6 {[%emt 0:00:43]} (33. Rg1 $142 Rxe3 34. Qd7) 33... Rc7 {[%emt 0:02:35]} (33... Rc2 $142 34. Rg1 Rxe3) 34. h4 {[%emt 0:03:40]} (34. Qb5 $19 Rxe3 35. Qe8+ Kb7 36. Qb5+ Kc8 37. Qe8+ Qd8 38. Qxd8+ Kxd8 39. g3 Rxf3+ 40. Ke1) 34... Qg3 {[%emt 0:05:06] Black mates.} 35. Qb5 {[%emt 0:00:35] [#]} Rc8 $1 {[%emt 0:00:46]} ({And not} 35... Rxe3 36. Qe8+ Kb7 37. Qb5+ Ka8 38. Qe8+ Kb7 39. Qb5+ Ka8 $11) 36. Qa6 {[%emt 0:01:27] [#]} Rc2 $3 {[%emt 0:01:05][%mdl 512] Weighted Error Value: White=0.58/Black=0.16 (very precise) .  Loses game:     	White=1     	---        Mistake:       	White=4     	Black=2      Inaccurate:     	White=2     	---        OK:         	White=11    	Black=14     Best:        	White=4     	Black=7      Strong:       	---       	Black=3} 0-1